bitfinex/quotes_BTCUSD_20250523
["timestamp","ask_amount","ask_price","bid_price","bid_amount"]
[1748021056024,0.27628242,109670.0,109660.0,1.27487553]
[1748021056239,0.26716441,109670.0,109660.0,1.91199553]
[1748021056792,0.26716441,109670.0,109660.0,0.73348]
[1748021056991,0.26716441,109670.0,109660.0,1.91199553]
[1748021057398,0.26716441,109670.0,109660.0,1.92111454]
[1748021057608,0.23616441,109670.0,109660.0,1.92111462]
[1748021057800,0.04468105,109670.0,109660.0,1.93023363]
[1748021058008,0.01408105,109670.0,109660.0,2.0484709]
[1748021058213,0.03231632,109670.0,109660.0,2.0484709]
[1748021058670,0.04143408,109670.0,109660.0,2.0484709]
[1748021059029,0.23291736,109670.0,109660.0,1.39311363]
[1748021059240,0.08897027,109670.0,109660.0,2.05704596]
[1748021059658,0.08897027,109670.0,109660.0,2.05704604]
[1748021060073,0.27133554,109670.0,109660.0,1.02443655]
[1748021060338,0.28280027,109670.0,109660.0,2.02057018]
[1748021061386,0.28280027,109670.0,109660.0,2.03880828]
[1748021061603,0.28280027,109670.0,109660.0,2.49648631]
[1748021061604,0.01408105,109670.0,109660.0,2.49648631]
[1748021061822,0.01408105,109670.0,109660.0,2.57402358]
[1748021062678,0.01408105,109670.0,109660.0,2.58475076]
[1748021063303,0.03231648,109670.0,109660.0,1.12470929]
[1748021063538,0.27628225,109670.0,109660.0,1.23567546]
[1748021063769,0.27628225,109670.0,109660.0,1.69129736]
[1748021063942,0.26716441,109670.0,109660.0,1.84891546]
[1748021064520,0.26716441,109670.0,109660.0,1.82961363]
[1748021064949,0.35670997,109670.0,109660.0,1.55637363]
[1748021065155,0.35670997,109670.0,109660.0,1.48961363]
[1748021065355,0.26716441,109670.0,109660.0,2.01199553]
[1748021065787,0.26716441,109670.0,109660.0,0.76605246]
[1748021066131,0.26716441,109670.0,109660.0,1.10605246]
[1748021066357,0.26716441,109670.0,109660.0,0.92367056]
[1748021066561,0.26716441,109670.0,109660.0,1.10605246]
[1748021066851,0.26716441,109670.0,109660.0,0.55979056]
[1748021067061,0.26716441,109670.0,109660.0,1.19691056]
[1748021067505,0.07153516,109670.0,109660.0,1.39753022]
[1748021067689,0.26301802,109670.0,109660.0,1.38841155]
[1748021067828,0.29431802,109670.0,109660.0,1.38841147]
[1748021068041,0.11195267,109670.0,109660.0,1.38841147]
[1748021068248,0.29431794,109670.0,109660.0,1.53675346]
[1748021068643,0.10283449,109670.0,109660.0,1.55444738]
[1748021068852,0.09371648,109670.0,109660.0,1.56356614]
[1748021069079,0.11195283,109670.0,109660.0,1.53620962]
[1748021069292,0.01408105,109670.0,109660.0,0.92644573]
[1748021069498,0.01408105,109670.0,109660.0,2.07102492]
[1748021070156,0.02934813,109690.0,109680.0,0.53146591]
[1748021070369,0.002,109690.0,109680.0,1.90484736]
[1748021070579,0.02023227,109690.0,109680.0,1.90484736]
[1748021070783,0.02934878,109690.0,109680.0,1.89573035]
[1748021070985,0.02023219,109690.0,109680.0,1.90484745]
[1748021071189,0.03846496,109690.0,109680.0,1.90484745]
[1748021071421,0.02934845,109690.0,109680.0,1.9139643]
[1748021071628,0.03846488,109690.0,109680.0,1.91396446]
[1748021071833,0.03846488,109690.0,109680.0,1.91396438]
[1748021071834,0.01111601,109690.0,109680.0,1.91396438]
[1748021072055,0.02023211,109690.0,109680.0,1.92308123]
[1748021072269,0.01111593,109690.0,109680.0,1.92308123]
[1748021072474,0.01111585,109690.0,109680.0,1.92308123]
[1748021072902,0.02023178,109690.0,109680.0,1.93164889]
[1748021073111,0.02934796,109690.0,109680.0,1.92253204]
[1748021073295,0.03846439,109690.0,109680.0,1.92253204]
[1748021073543,0.21168097,109690.0,109680.0,1.25806083]
[1748021073752,0.27258097,109690.0,109680.0,1.88506357]
[1748021073956,0.27258097,109690.0,109680.0,1.25806091]
[1748021074158,0.25434853,109690.0,109680.0,1.52604994]
[1748021074536,0.25434853,109690.0,109680.0,1.53516728]
[1748021074755,0.25434853,109690.0,109680.0,1.89418091]
[1748021074959,0.25434853,109690.0,109680.0,1.24894357]
[1748021075097,0.24523202,109690.0,109680.0,1.88561334]
[1748021075518,0.24523202,109690.0,109680.0,1.89473068]
[1748021075755,0.24523202,109690.0,109680.0,1.87649591]
[1748021076213,0.24523202,109690.0,109680.0,1.06189363]
[1748021076418,0.24523202,109690.0,109680.0,1.51748228]
[1748021076536,0.24523202,109690.0,109680.0,1.33513363]
[1748021076745,0.24523202,109690.0,109680.0,1.51748228]
[1748021076944,0.24523202,109690.0,109680.0,0.88136228]
[1748021077144,0.2882879,109690.0,109680.0,0.34]
[1748021077351,0.33477758,109690.0,109680.0,0.97612]
[1748021077764,0.24523202,109690.0,109680.0,1.33513363]
[1748021079892,0.24523202,109690.0,109680.0,0.97612]
[1748021080091,0.24523202,109690.0,109680.0,1.33513363]
[1748021080503,0.33477758,109690.0,109680.0,1.33513363]
[1748021080832,0.24523202,109690.0,109680.0,1.33513363]
[1748021082075,0.24523202,109690.0,109680.0,1.69414726]
[1748021082076,0.18433202,109690.0,109680.0,1.69414726]
[1748021082283,0.21343202,109690.0,109680.0,1.69414726]
[1748021082892,0.24203202,109690.0,109680.0,1.69414726]
[1748021083318,0.24203202,109690.0,109680.0,0.69901363]
[1748021083529,0.24203202,109690.0,109680.0,1.33513363]
[1748021083976,0.20256496,109690.0,109680.0,1.52659971]
[1748021084180,0.21168114,109690.0,109680.0,1.34425106]
[1748021084403,0.21168114,109690.0,109680.0,1.87649591]
[1748021084544,0.21168114,109690.0,109680.0,1.88561317]
[1748021084752,0.21168114,109690.0,109680.0,1.89473035]
[1748021084954,0.24078114,109690.0,109680.0,1.88561317]
[1748021085163,0.26026496,109690.0,109680.0,1.88561317]
[1748021085405,0.26026496,109690.0,109680.0,1.05802726]
[1748021085548,0.25114853,109690.0,109680.0,1.87649591]
[1748021085749,0.25114853,109690.0,109680.0,1.51748228]
[1748021085957,0.25114853,109690.0,109680.0,1.15846865]
[1748021086160,0.25114853,109690.0,109680.0,1.33513363]
[1748021086362,0.25114853,109690.0,109680.0,1.15846865]
[1748021086608,0.24203202,109690.0,109680.0,0.97612]
[1748021086802,0.24203202,109690.0,109680.0,1.16758608]
[1748021087440,0.21293202,109690.0,109680.0,1.17670342]
[1748021087646,0.19344853,109690.0,109680.0,1.18582052]
[1748021088490,0.19344853,109690.0,109680.0,1.17670342]
[1748021088701,0.19344853,109690.0,109680.0,1.18582068]
[1748021088913,0.22424853,109690.0,109680.0,1.19439001]
[1748021089114,0.25344853,109690.0,109680.0,1.19439001]
[1748021089717,0.25344853,109690.0,109680.0,1.18527275]
[1748021090174,0.24433202,109690.0,109680.0,1.18527275]
[1748021091386,0.24433202,109690.0,109680.0,0.98468933]
[1748021092200,0.24433202,109690.0,109680.0,0.34856933]
[1748021092366,0.24433202,109690.0,109680.0,0.98468933]
[1748021092816,0.24433202,109690.0,109680.0,0.64468933]
[1748021093704,0.18433202,109690.0,109680.0,0.00856933]
[1748021093928,0.02023245,109690.0,109680.0,0.85666826]
[1748021094159,0.02023186,109690.0,109680.0,0.84581994]
[1748021094367,0.02023186,109690.0,109680.0,1.18581994]
[1748021094580,0.002,109690.0,109680.0,1.18581994]
[1748021094796,0.002,109690.0,109680.0,1.24581994]
[1748021096070,0.002,109690.0,109680.0,1.25438914]
[1748021096929,0.002,109690.0,109680.0,1.3449347]
[1748021097390,6e-05,109730.0,109700.0,0.0292]
[1748021097625,0.26896455,109730.0,109720.0,0.52228217]
[1748021097907,0.26000356,109730.0,109720.0,0.34]
[1748021098130,0.26000356,109730.0,109720.0,0.97604]
[1748021098131,0.34954912,109730.0,109720.0,0.97604]
[1748021098364,0.26000356,109730.0,109720.0,1.00571278]
[1748021098583,0.26000356,109730.0,109720.0,1.18799495]
[1748021098809,0.25089054,109730.0,109720.0,1.00571278]
[1748021099032,0.25089054,109730.0,109720.0,0.36967278]
[1748021099700,0.25089054,109730.0,109720.0,1.00571278]
[1748021101660,0.3404361,109730.0,109720.0,0.36967278]
[1748021101893,0.3404361,109730.0,109720.0,0.66567278]
[1748021103810,0.25089054,109730.0,109720.0,0.66567278]
[1748021106211,0.25089054,109730.0,109720.0,0.02967278]
[1748021106654,0.25089054,109730.0,109720.0,0.64088]
[1748021107291,0.20052807,109710.0,109700.0,0.52231452]
[1748021107506,0.20052807,109710.0,109700.0,1.17231029]
[1748021107714,0.20052807,109710.0,109700.0,0.34]
[1748021107921,0.19141355,109710.0,109700.0,1.1631954]
[1748021108132,0.19141355,109710.0,109700.0,1.17231117]
[1748021108341,0.19141355,109710.0,109700.0,1.1631954]
[1748021108767,0.19141355,109710.0,109700.0,0.98092]
[1748021108983,0.22061355,109710.0,109700.0,0.98192]
[1748021109217,0.22061355,109710.0,109700.0,1.19275704]
[1748021109218,0.21149878,109710.0,109700.0,1.19275704]
[1748021109413,0.21149878,109710.0,109700.0,1.22010392]
[1748021109696,0.22061355,109710.0,109700.0,1.22110392]
[1748021109938,0.22972807,109710.0,109700.0,1.22110409]
[1748021110826,0.22972807,109710.0,109700.0,1.21198849]
[1748021111041,0.22972807,109710.0,109700.0,1.22110409]
[1748021111251,0.22061355,109710.0,109700.0,1.21198849]
[1748021111649,0.22061355,109710.0,109700.0,1.22110409]
[1748021111907,0.22061355,109710.0,109700.0,1.22966429]
[1748021112333,0.19141355,109710.0,109700.0,1.22966429]
[1748021113214,0.21129878,109710.0,109700.0,1.22966429]
[1748021113407,0.21129878,109710.0,109700.0,0.57966869]
[1748021113637,0.21129878,109710.0,109700.0,1.22050869]
[1748021114014,0.21129878,109710.0,109700.0,1.22962429]
[1748021114429,0.22041355,109710.0,109700.0,1.24785524]
[1748021114635,0.19141355,109710.0,109700.0,1.24785524]
[1748021114929,0.19141355,109710.0,109700.0,1.2193336]
[1748021116008,0.21981355,109710.0,109700.0,1.2193336]
[1748021116519,0.24881355,109710.0,109700.0,1.2193336]
[1748021116805,0.24881355,109710.0,109700.0,1.21021817]
[1748021117699,0.23969878,109710.0,109700.0,0.3506002]
[1748021117903,0.23969878,109710.0,109700.0,0.9914402]
[1748021118110,0.23969878,109710.0,109700.0,0.7182802]
[1748021118316,0.23969878,109710.0,109700.0,0.98288]
[1748021120765,0.23969878,109710.0,109700.0,0.99156269]
[1748021120993,0.32924434,109710.0,109700.0,0.01072269]
[1748021121444,0.32924434,109710.0,109700.0,0.275314]
[1748021121922,0.32924434,109710.0,109700.0,0.274314]
[1748021121923,0.33775899,109710.0,109700.0,0.274314]
[1748021122155,0.24821343,109710.0,109700.0,0.614314]
[1748021122395,0.24821343,109710.0,109700.0,0.613314]
[1748021122617,0.23969878,109710.0,109700.0,0.613314]
[1748021122834,0.23969878,109710.0,109700.0,0.980994]
[1748021124321,0.23969878,109710.0,109700.0,0.340154]
[1748021124544,0.23969878,109710.0,109700.0,0.981034]
[1748021126384,0.32924434,109710.0,109700.0,0.340154]
[1748021126641,0.39493784,109710.0,109700.0,0.000154]
[1748021126877,0.07623427,109680.0,109670.0,0.01072718]
[1748021127112,0.39497345,109680.0,109670.0,0.01072718]
[1748021127340,0.24948336,109670.0,109660.0,0.02704375]
[1748021127552,0.33902892,109670.0,109660.0,0.30020375]
[1748021128252,0.33902892,109670.0,109660.0,0.02704375]
[1748021128438,0.35356977,109670.0,109660.0,0.002]
[1748021129913,0.71224017,109670.0,109660.0,0.002]
[1748021130326,0.27537866,109650.0,109640.0,0.02]
[1748021130537,0.27537866,109650.0,109640.0,0.02050625]
[1748021130538,0.36492422,109650.0,109640.0,0.02050625]
[1748021130771,0.85821613,109650.0,109640.0,0.00050625]
[1748021131784,0.49954573,109650.0,109640.0,0.00050625]
[1748021132222,0.45744573,109650.0,109640.0,0.00050625]
[1748021132449,0.36792422,109650.0,109640.0,0.00050625]
[1748021132650,0.36492422,109650.0,109640.0,0.00050625]
[1748021132867,0.36792422,109650.0,109640.0,0.00050625]
[1748021135273,0.35338337,109650.0,109640.0,0.00050625]
[1748021135957,1.05762422,109650.0,109640.0,0.00050625]
[1748021136168,1.05462422,109650.0,109640.0,0.00050625]
[1748021136387,1.14714573,109650.0,109640.0,0.00050625]
[1748021137557,1.15014573,109650.0,109640.0,0.00050625]
[1748021139077,1.06062422,109650.0,109640.0,0.00050625]
[1748021141223,1.06062422,109650.0,109640.0,0.27386625]
[1748021143790,1.06062422,109650.0,109640.0,0.00050625]
[1748021144019,1.06062422,109650.0,109640.0,0.27386625]
[1748021145870,1.06062422,109650.0,109640.0,0.00050625]
[1748021146073,1.08481043,109650.0,109640.0,0.00050625]
[1748021146532,1.06062422,109650.0,109640.0,0.00050625]
[1748021147153,0.00912233,109620.0,109610.0,0.30443159]
[1748021147358,0.20069295,109620.0,109610.0,0.71018658]
[1748021147925,0.20069295,109620.0,109610.0,0.71930958]
[1748021148333,0.20069295,109620.0,109610.0,0.99366958]
[1748021148572,0.20069295,109620.0,109610.0,0.91162651]
[1748021149355,0.20069295,109620.0,109610.0,0.92013896]
[1748021150669,0.28111634,109620.0,109610.0,0.01066436]
[1748021150881,0.31061634,109620.0,109610.0,0.65250436]
[1748021151516,0.31061634,109620.0,109610.0,0.64399191]
[1748021151722,0.31061634,109620.0,109610.0,0.64403191]
[1748021151940,0.37493041,109620.0,109610.0,0.00215191]
[1748021152155,0.38947126,109620.0,109610.0,0.00215191]
[1748021152615,0.80339133,109620.0,109610.0,0.00215191]
[1748021152826,0.82791006,109620.0,109610.0,0.00115191]
[1748021153040,0.82891006,109620.0,109610.0,0.00115191]
[1748021153678,0.48791006,109620.0,109610.0,0.00115191]
[1748021153926,0.49091006,109620.0,109610.0,0.00115191]
[1748021154136,0.41698999,109620.0,109610.0,0.00115191]
[1748021154317,0.41698999,109620.0,109610.0,0.00015191]
[1748021155187,1.06194999,109620.0,109610.0,0.00015191]
[1748021155399,0.41998999,109620.0,109610.0,0.00015191]
[1748021155606,1.06194999,109620.0,109610.0,0.00015191]
[1748021156249,1.78062039,109620.0,109610.0,0.00015191]
[1748021156685,1.77062039,109620.0,109610.0,0.00015191]
[1748021156895,1.78062039,109620.0,109610.0,0.00015191]
[1748021157309,1.42194999,109620.0,109610.0,0.00015191]
[1748021157756,0.76998999,109620.0,109610.0,0.00015191]
[1748021160166,0.35965719,109620.0,109610.0,0.00015191]
[1748021160383,0.31661634,109620.0,109610.0,0.00015191]
[1748021160819,0.31661634,109620.0,109610.0,0.99077867]
[1748021160820,0.19757078,109620.0,109610.0,0.99077867]
[1748021161030,0.19757078,109620.0,109610.0,1.01957867]
[1748021161880,0.19457078,109620.0,109610.0,1.05374567]
[1748021162110,0.00912233,109620.0,109610.0,1.23621077]
[1748021162318,0.21281463,109620.0,109610.0,1.29257919]
[1748021162522,0.22193705,109620.0,109610.0,1.0081292]
[1748021162743,0.22193705,109620.0,109610.0,0.9990067]
[1748021163103,0.21181521,109620.0,109610.0,0.9990067]
[1748021163314,0.20981521,109620.0,109610.0,0.9990067]
[1748021163511,0.20981521,109620.0,109610.0,1.0010067]
[1748021163713,0.20069279,109620.0,109610.0,1.2474467]
[1748021164419,0.20069279,109620.0,109610.0,1.23832378]
[1748021164575,0.20069279,109620.0,109610.0,1.2474467]
[1748021165079,0.20069279,109620.0,109610.0,1.25656953]
[1748021166607,0.20069279,109620.0,109610.0,1.23832378]
[1748021166829,0.20069279,109620.0,109610.0,1.00881243]
[1748021167247,0.20069279,109620.0,109610.0,1.21108942]
[1748021167704,0.20069279,109620.0,109610.0,1.22021259]
[1748021168116,0.01824425,109620.0,109610.0,1.22021259]
[1748021168274,0.00912175,109620.0,109610.0,1.29625818]
[1748021168472,0.00912125,109630.0,109620.0,0.1915707]
[1748021168681,0.20979548,109630.0,109620.0,0.2210707]
[1748021168958,0.01824267,109630.0,109620.0,0.23019279]
[1748021169162,0.01824267,109630.0,109620.0,0.23931471]
[1748021169340,0.01824075,109640.0,109630.0,0.53155331]
[1748021169543,0.01824075,109640.0,109630.0,1.21673574]
[1748021169544,0.03648217,109640.0,109630.0,1.21673574]
[1748021169782,0.02736142,109640.0,109630.0,1.21673574]
[1748021169999,0.20063814,109650.0,109640.0,0.54065642]
[1748021170249,0.20975806,109650.0,109640.0,0.53153592]
[1748021170483,0.19151846,109650.0,109640.0,0.34]
[1748021170714,0.19151846,109650.0,109640.0,0.52241517]
[1748021170958,0.19151846,109650.0,109640.0,0.34]
[1748021171370,0.19151846,109650.0,109640.0,0.35922611]
[1748021171618,0.19151846,109650.0,109640.0,0.36022611]
[1748021171826,0.19151846,109650.0,109640.0,0.02022611]
[1748021171827,0.31116402,109650.0,109640.0,0.02022611]
[1748021172031,0.31116402,109650.0,109640.0,0.99758611]
[1748021172250,0.28106402,109650.0,109640.0,1.18912195]
[1748021172459,0.01823868,109650.0,109640.0,1.2058037]
[1748021172708,0.01823843,109650.0,109640.0,1.25973278]
[1748021172930,0.00911843,109660.0,109650.0,0.5497568]
[1748021173149,0.1914832,109670.0,109660.0,0.20061983]
[1748021173369,0.20971906,109670.0,109660.0,0.84709859]
[1748021173583,0.18239586,109680.0,109670.0,0.19148336]
[1748021173584,0.02735112,109680.0,109670.0,0.19148336]
[1748021173794,0.02735178,109680.0,109670.0,0.55998336]
[1748021174026,0.21881786,109680.0,109670.0,0.5691012]
[1748021174254,0.01874029,109680.0,109670.0,0.61536555]
[1748021174899,0.22844031,109680.0,109670.0,0.60624796]
[1748021175103,0.04609149,109680.0,109670.0,0.61536564]
[1748021175313,0.21932338,109680.0,109670.0,0.61536564]
[1748021175514,0.04609207,109680.0,109670.0,0.61536564]
[1748021175717,0.00050634,109680.0,109670.0,0.61636564]
[1748021175929,0.00962302,109680.0,109670.0,0.61636564]
[1748021176136,0.01873987,109680.0,109670.0,0.61636564]
[1748021176536,0.00962302,109680.0,109670.0,0.61636564]
[1748021176741,0.01873987,109680.0,109670.0,0.61636564]
[1748021177033,0.21020553,109680.0,109670.0,0.34954676]
[1748021177235,0.20108926,109680.0,109670.0,0.34954676]
[1748021177427,0.34663482,109680.0,109670.0,0.64682676]
[1748021178212,0.34663482,109680.0,109670.0,0.64582676]
[1748021178806,0.34663482,109680.0,109670.0,0.63728]
[1748021180353,0.34763482,109680.0,109670.0,0.63728]
[1748021181010,0.34763482,109680.0,109660.0,0.3936]
[1748021181011,0.24898336,109670.0,109660.0,0.66692]
[1748021181216,0.24898336,109670.0,109640.0,0.02502908]
[1748021181217,0.22953781,109650.0,109640.0,0.02502908]
[1748021181472,0.20063781,109650.0,109640.0,0.63834908]
[1748021181681,0.20063781,109650.0,109640.0,0.61332]
[1748021181901,0.20063781,109650.0,109640.0,0.34]
[1748021182030,0.20063781,109650.0,109640.0,0.9772]
[1748021182249,0.1915183,109650.0,109640.0,0.9772]
[1748021182453,0.1915183,109650.0,109640.0,0.9802]
[1748021182713,0.1915183,109650.0,109640.0,0.98932075]
[1748021182919,0.1915183,109650.0,109640.0,0.9802]
[1748021183122,0.1915183,109650.0,109640.0,0.98932075]
[1748021183507,0.18239854,109650.0,109640.0,0.9802]
[1748021183669,0.18239854,109650.0,109640.0,1.17173592]
[1748021183879,0.18239854,109650.0,109640.0,0.9802]
[1748021185063,0.18239854,109650.0,109640.0,1.00541857]
[1748021185305,0.18239854,109650.0,109640.0,1.00841857]
[1748021185739,0.18239854,109650.0,109640.0,0.73209857]
[1748021185943,0.21129854,109650.0,109640.0,1.00741857]
[1748021186355,0.3008441,109650.0,109640.0,0.37021857]
[1748021186572,0.3008441,109650.0,109640.0,1.00441857]
[1748021186774,0.3008441,109650.0,109640.0,1.00641857]
[1748021187593,0.21129854,109650.0,109640.0,1.00641857]
[1748021187806,0.18239854,109650.0,109640.0,1.00641857]
[1748021188012,0.1915183,109650.0,109640.0,1.19795441]
[1748021188227,0.1915183,109650.0,109640.0,1.20707491]
[1748021188430,0.1915183,109650.0,109640.0,1.19795441]
[1748021188645,0.1915183,109650.0,109640.0,1.00641857]
[1748021188850,0.18239854,109650.0,109640.0,1.00641857]
[1748021192677,0.18239854,109650.0,109640.0,0.66641857]
[1748021192931,0.3305441,109650.0,109640.0,0.02921857]
[1748021193160,0.3305441,109650.0,109640.0,0.27732]
[1748021193610,0.3305441,109650.0,109640.0,0.27532]
[1748021193837,0.20979583,109630.0,109620.0,0.18244822]
[1748021194070,0.20579583,109630.0,109620.0,0.81964822]
[1748021194306,0.01824193,109630.0,109620.0,0.85613657]
[1748021194528,0.03648486,109630.0,109620.0,0.87721473]
[1748021194752,0.03648469,109630.0,109620.0,0.8772149]
[1748021194998,0.2189165,109630.0,109620.0,0.8772149]
[1748021195206,0.2189165,109630.0,109620.0,0.8863369]
[1748021195404,0.22803809,109630.0,109620.0,0.8863369]
[1748021195731,0.03648469,109630.0,109620.0,0.89545882]
[1748021195957,0.04560628,109630.0,109620.0,0.8863369]
[1748021196208,0.21891725,109630.0,109620.0,0.83989281]
[1748021196440,0.20067482,109630.0,109620.0,0.84693213]
[1748021196687,0.20067482,109630.0,109620.0,0.84893213]
[1748021196974,0.2202534,109630.0,109620.0,0.66648391]
[1748021197422,0.2202534,109630.0,109620.0,0.02928391]
[1748021197647,0.33799896,109630.0,109620.0,0.66456391]
[1748021201118,0.18243028,109640.0,109620.0,0.84701236]
[1748021201338,0.22803766,109630.0,109620.0,1.18701236]
[1748021201554,0.20979573,109630.0,109620.0,1.00456391]
[1748021201789,0.22797456,109630.0,109620.0,1.00456391]
[1748021202160,0.22797456,109630.0,109620.0,1.18301236]
[1748021202384,0.20067456,109630.0,109620.0,1.19413469]
[1748021202749,0.19155331,109630.0,109620.0,1.19413478]
[1748021202977,0.19155331,109630.0,109620.0,1.20525711]
[1748021203189,0.19155331,109630.0,109620.0,1.20325711]
[1748021203431,0.18243181,109630.0,109620.0,1.18701236]
[1748021203851,0.18243181,109630.0,109620.0,1.19613478]
[1748021204553,0.18243181,109630.0,109620.0,1.20525711]
[1748021204786,0.18243181,109630.0,109620.0,1.19613478]
[1748021204984,0.18243181,109630.0,109620.0,1.17085087]
[1748021205142,0.18243181,109630.0,109620.0,0.70596]
[1748021205350,0.32667737,109630.0,109620.0,0.344]
[1748021205563,0.32667737,109630.0,109620.0,0.97936]
[1748021205967,0.32667737,109630.0,109620.0,0.63736]
[1748021206166,0.32667737,109630.0,109620.0,0.63636]
[1748021206418,0.32667737,109630.0,109620.0,0.81880845]
[1748021206419,0.19155323,109630.0,109620.0,0.81880845]
[1748021206593,0.19155323,109630.0,109620.0,1.16793087]
[1748021206594,0.2097959,109630.0,109620.0,1.16793087]
[1748021206798,0.21891749,109630.0,109620.0,1.18517512]
[1748021207023,0.21891749,109630.0,109620.0,1.19429687]
[1748021207024,0.01824234,109630.0,109620.0,1.19429687]
[1748021207236,0.02736334,109630.0,109620.0,1.19429687]
[1748021207450,0.03648476,109630.0,109620.0,1.22282245]
[1748021207674,0.22803816,109630.0,109620.0,1.22282245]
[1748021207880,0.21891716,109630.0,109620.0,1.19372245]
[1748021208778,0.20979607,109630.0,109620.0,1.19372262]
[1748021208981,0.20067482,109630.0,109620.0,0.92036262]
[1748021209207,0.18243181,109630.0,109620.0,0.98390733]
[1748021209583,0.21083181,109630.0,109620.0,0.98390733]
[1748021210004,0.24093181,109630.0,109620.0,0.98390733]
[1748021210181,0.33047737,109630.0,109620.0,0.98390733]
[1748021212397,0.2196707,109620.0,109610.0,0.39356]
[1748021212613,0.2196707,109620.0,109610.0,1.36892]
[1748021213656,0.2196707,109620.0,109610.0,1.3784823]
[1748021214673,0.2196707,109620.0,109610.0,1.3794823]
[1748021214830,0.2196707,109620.0,109610.0,1.5619474]
[1748021215039,0.2196707,109620.0,109610.0,0.7441223]
[1748021215407,0.2196707,109620.0,109610.0,1.3795623]
[1748021216989,0.2196707,109620.0,109610.0,0.75502569]
[1748021217211,0.2196707,109620.0,109610.0,0.6460023]
[1748021217421,0.2196707,109620.0,109610.0,0.63744]
[1748021219282,0.2478707,109620.0,109610.0,0.36404]
[1748021219692,0.2478707,109620.0,109610.0,0.63744]
[1748021220534,0.2478707,109620.0,109610.0,0.63644]
[1748021220755,0.2196707,109620.0,109610.0,0.8189051]
[1748021220959,0.20069287,109620.0,109610.0,1.16802827]
[1748021221372,0.20069287,109620.0,109610.0,1.18527427]
[1748021221586,0.21895095,109640.0,109630.0,0.2006744]
[1748021221798,0.20065626,109640.0,109630.0,1.17611456]
[1748021222031,0.22803797,109650.0,109640.0,0.53153576]
[1748021222214,0.21891838,109650.0,109640.0,0.34]
[1748021223469,0.22191838,109650.0,109640.0,0.34]
[1748021224448,0.22491838,109650.0,109640.0,0.34]
[1748021225641,0.31446394,109650.0,109640.0,0.34]
[1748021225834,0.34116394,109650.0,109640.0,0.34]
[1748021226602,0.19153576,109640.0,109630.0,0.39364]
[1748021226815,0.24693576,109640.0,109630.0,1.09396]
[1748021227021,0.33648132,109640.0,109630.0,1.02732]
[1748021227858,0.33848132,109640.0,109630.0,1.02732]
[1748021228108,0.73086931,109640.0,109630.0,1.02732]
[1748021228458,0.69302217,109640.0,109630.0,1.02732]
[1748021229052,0.69402217,109640.0,109630.0,1.02732]
[1748021229879,0.35402217,109640.0,109630.0,1.02732]
[1748021232293,0.20071101,109610.0,109600.0,0.00204]
[1748021232510,0.38718402,109610.0,109600.0,0.00219196]
[1748021232750,0.34615657,109610.0,109600.0,0.00219196]
[1748021233809,0.34615657,109610.0,109600.0,0.27655196]
[1748021234035,0.34615657,109610.0,109600.0,0.27955196]
[1748021234423,0.39901858,109610.0,109600.0,0.27655196]
[1748021234836,0.34815657,109610.0,109600.0,0.27655196]
[1748021235275,0.34815657,109610.0,109600.0,0.27555196]
[1748021235684,0.35015657,109610.0,109600.0,0.27555196]
[1748021236059,1.03985657,109610.0,109600.0,0.27555196]
[1748021236693,1.03985657,109610.0,109600.0,0.27559196]
[1748021236850,1.03985657,109610.0,109600.0,0.00219196]
[1748021237047,1.03985657,109610.0,109600.0,0.27559196]
[1748021238134,1.03985657,109610.0,109600.0,0.27434478]
[1748021239101,1.05439742,109610.0,109600.0,0.00094478]
[1748021239309,1.08895839,109610.0,109600.0,0.00094478]
[1748021242856,1.03985657,109610.0,109600.0,0.00094478]
[1748021244033,1.03985657,109610.0,109600.0,0.27438478]
[1748021244754,1.03985657,109610.0,109600.0,0.00094478]
[1748021244975,1.05439742,109610.0,109600.0,0.00094478]
[1748021245203,0.73336782,109610.0,109600.0,0.00094478]
[1748021245433,1.18332933,109610.0,109600.0,0.00094478]
[1748021246448,1.18332933,109610.0,109600.0,0.00094478]
[1748021246669,1.36328782,109610.0,109600.0,0.00094478]
[1748021246881,1.36728782,109610.0,109600.0,0.00094478]
[1748021247118,1.37128782,109610.0,109600.0,0.00094478]
[1748021247317,1.01261742,109610.0,109600.0,0.00094478]
[1748021247807,1.72128782,109610.0,109600.0,0.00094478]
[1748021248173,1.81080933,109610.0,109600.0,0.00094478]
[1748021248384,1.80580933,109610.0,109600.0,0.00094478]
[1748021248642,0.21532513,109570.0,109560.0,0.27548]
[1748021248803,0.35977069,109570.0,109560.0,0.27548]
[1748021249229,0.35977069,109570.0,109560.0,0.002]
[1748021249443,0.41400077,109570.0,109560.0,0.002]
[1748021249638,0.35977069,109570.0,109560.0,0.002]
[1748021249847,0.36077069,109570.0,109560.0,0.002]
[1748021250298,0.29132984,109570.0,109560.0,0.002]
[1748021250475,0.01112591,109570.0,109560.0,1.24092961]
[1748021250682,0.02025191,109570.0,109560.0,1.24092961]
[1748021250904,0.03850448,109570.0,109560.0,1.24092961]
[1748021251077,0.03850448,109570.0,109560.0,1.24096961]
[1748021251974,0.03750448,109570.0,109560.0,1.24096961]
[1748021252185,0.0375044,109570.0,109560.0,1.24096961]
[1748021252432,0.01825191,109570.0,109560.0,1.24296961]
[1748021252641,0.19162273,109590.0,109580.0,0.59556612]
[1748021252864,0.19165412,109600.0,109590.0,0.20074765]
[1748021253080,0.20985358,109600.0,109590.0,0.5772984]
[1748021253296,5.057e-05,109600.0,109590.0,0.61379706]
[1748021253507,5.057e-05,109600.0,109590.0,0.70334262]
[1748021254180,0.01829748,109600.0,109590.0,0.70334262]
[1748021254403,0.0091739,109600.0,109590.0,0.70534262]
[1748021254780,0.02742098,109600.0,109590.0,0.70534262]
[1748021255003,0.0091739,109600.0,109590.0,0.70034262]
[1748021255219,5.057e-05,109600.0,109590.0,0.70034262]
[1748021255647,0.002,109630.0,109620.0,0.54981471]
[1748021255866,0.02941415,109630.0,109620.0,1.20273287]
[1748021256079,0.21184596,109630.0,109620.0,1.18448845]
[1748021256305,0.19360387,109630.0,109620.0,0.34]
[1748021256513,0.3570695,109630.0,109620.0,0.9734]
[1748021257162,0.3590695,109630.0,109620.0,0.9734]
[1748021257524,0.28514943,109630.0,109620.0,0.9734]
[1748021257763,0.19560387,109630.0,109620.0,0.9734]
[1748021257960,0.19560387,109630.0,109620.0,1.20049304]
[1748021257961,0.21384654,109630.0,109620.0,1.20049304]
[1748021258691,0.19560395,109630.0,109620.0,0.9950566]
[1748021259583,0.28514951,109630.0,109620.0,0.9949766]
[1748021264140,0.31234951,109630.0,109620.0,0.9949766]
[1748021264536,0.2047252,109630.0,109620.0,1.19566947]
[1748021264769,0.2047252,109630.0,109620.0,1.17742505]
[1748021265390,0.19560395,109630.0,109620.0,1.17742505]
[1748021265614,0.19560395,109630.0,109620.0,1.18654747]
[1748021265769,0.19560395,109630.0,109620.0,1.17742505]
[1748021268107,0.19560395,109630.0,109620.0,1.18654747]
[1748021268297,0.18648245,109630.0,109620.0,1.17742505]
[1748021268959,0.18648245,109630.0,109620.0,0.7215366]
[1748021269386,0.18648245,109630.0,109620.0,0.9949366]